bitfinex-derivatives/quotes_SOLF0:USTF0_20251219
["timestamp","ask_amount","ask_price","bid_price","bid_amount"]
[1766102882599,7.5393,119.44,119.35,7.5449]
[1766102882898,117.2696,119.45,119.34,1.45774427]
[1766102883199,7.5397,119.44,119.38,17.1815931]
[1766102883394,7.5397,119.44,119.38,17.12]
[1766102884294,0.05980429,119.42,119.4,0.05647237]
[1766102887498,7.5382,119.46,119.4,17.17647237]
[1766102887704,179.2117,119.49,119.4,17.17647237]
[1766102887894,179.2117,119.49,119.4,17.12]
[1766102888706,0.05792155,119.46,119.43,0.05597299]
[1766102890003,61.98,119.49,119.43,17.17597299]
[1766102890797,117.181,119.54,119.43,17.17597299]
[1766102891004,0.06002833,119.5,119.47,0.05340619]
[1766102894806,2.833e-05,119.5,119.47,16.74340619]
[1766102897408,15.0606,119.59,119.47,18.42340619]
[1766102897409,117.1319,119.59,119.47,18.42340619]
[1766102897613,117.1319,119.59,119.47,16.69]
[1766102898409,117.1319,119.59,119.52,0.05761676]
[1766102898613,7.5314,119.57,119.52,0.05761676]
[1766102899505,0.05373749,119.56,119.52,0.05761676]
[1766102899706,0.00373749,119.56,119.52,16.74761676]
[1766102909315,7.529,119.61,119.53,16.69]
[1766102909521,117.0821,119.64,119.53,16.69]
[1766102909712,1.41502893,119.66,119.54,16.69]
[1766102909713,63.21502893,119.66,119.54,16.69]
[1766102909911,7.527,119.64,119.57,16.69]
[1766102910315,0.06148264,119.62,119.59,0.06082828]
[1766102913118,0.06148264,119.62,119.59,16.75082828]
[1766102916628,0.00148264,119.62,119.59,16.75082828]
[1766102925243,0.00148264,119.62,119.59,0.06082828]
[1766102926048,0.00148264,119.62,119.59,16.74082828]
[1766102926444,1.41502893,119.66,119.59,16.74082828]
[1766102927447,0.05576448,119.64,119.59,16.74082828]
[1766102927751,0.05576448,119.64,119.6,16.68]
[1766102934851,7.5241,119.69,119.61,16.68]
[1766102935056,61.58,119.72,119.61,16.68]
[1766102935256,61.58,119.72,119.63,16.68]
[1766102935948,0.06191933,119.69,119.66,0.05845548]
[1766102937056,7.58541933,119.69,119.66,0.05845548]
[1766102937557,0.06191933,119.69,119.66,0.05845548]
[1766102940265,0.06191933,119.69,119.66,16.73845548]
[1766102940556,0.00191933,119.69,119.66,16.73845548]
[1766102946663,69.0616,119.73,119.66,16.73845548]
[1766102947462,7.5216,119.73,119.66,16.73845548]
[1766102947657,0.00267304,119.71,119.66,16.73845548]
[1766102947857,7.5204,119.74,119.66,16.68]
[1766102948066,116.9883,119.74,119.67,18.18]
[1766102948765,0.05339398,119.72,119.69,0.05596476]
[1766102949566,7.57539398,119.72,119.69,0.05596476]
[1766102949766,0.05339398,119.72,119.69,0.05596476]
[1766102950261,0.05339398,119.72,119.69,18.23596476]
[1766102950468,178.4364,119.77,119.69,18.23596476]
[1766102950669,116.9652,119.76,119.69,18.18]
[1766102951167,7.5211,119.73,119.69,18.18]
[1766102951467,0.02847068,119.72,119.7,0.05992468]
[1766102951876,178.4364,119.77,119.7,0.05992468]
[1766102952374,7.5199,119.75,119.7,0.05992468]
[1766102955374,7.5205,119.74,119.67,18.02]
[1766102955776,117.0052,119.72,119.6,18.02]
[1766102955975,61.4,119.71,119.6,18.02]
[1766102956474,0.05992468,119.67,119.64,0.06152016]
[1766102956675,0.05992468,119.67,119.64,18.08152016]
[1766102961468,0.05992468,119.67,119.64,0.06152016]
[1766102961670,0.05992468,119.67,119.6,18.02]
[1766102961869,117.0372,119.69,119.6,18.02]
[1766102962681,0.06356477,119.66,119.63,0.05751096]
[1766102963383,0.06356477,119.66,119.63,18.07751096]
[1766102969483,0.06356477,119.66,119.63,0.05751096]
[1766102969788,7.58896477,119.66,119.63,0.05751096]
[1766102972398,7.5261,119.65,119.63,0.05751096]
[1766102974089,0.06356477,119.66,119.63,0.05751096]
[1766102974391,61.3,119.7,119.63,18.07751096]
[1766102975386,0.05510686,119.68,119.63,18.07751096]
[1766102977501,0.05510686,119.68,119.63,0.05751096]
[1766102980805,7.57930686,119.68,119.63,0.05751096]
[1766102981514,0.05510686,119.68,119.63,18.07751096]
[1766102981806,61.24,119.72,119.63,18.07751096]
[1766102982006,116.9762,119.75,119.63,18.02]
[1766102982199,61.24,119.74,119.63,18.02]
[1766102982606,61.24,119.74,119.67,17.69]
[1766102982903,61.24,119.74,119.69,17.74802868]
[1766102987900,7.5189,119.77,119.69,17.74802868]
[1766102988098,7.5189,119.77,119.72,0.06131723]
[1766102989207,7.5191,119.76,119.72,0.06131723]
[1766102993314,7.5191,119.76,119.67,17.69]
[1766102993315,0.05500786,119.75,119.67,17.69]
[1766102993503,116.9668,119.76,119.67,17.69]
[1766102994206,7.58372476,119.73,119.67,17.69]
[1766102994406,68.72372476,119.73,119.67,17.69]
[1766102994717,61.20252476,119.73,119.67,17.69]
[1766102995005,178.19872476,119.73,119.65,17.69]
[1766102995207,0.06017292,119.7,119.68,0.06093448]
[1766103000215,7.58307292,119.7,119.68,0.06093448]
[1766103000416,7.58307292,119.7,119.65,17.69]
[1766103001520,7.58307292,119.7,119.66,0.05337628]
[1766103001909,7.5237,119.69,119.66,0.05337628]
[1766103002313,178.1363,119.69,119.6,17.33]
[1766103002515,117.0455,119.68,119.6,17.33]
[1766103003214,0.05505432,119.65,119.63,0.05895447]
[1766103003712,61.08,119.69,119.63,17.38895447]
[1766103004417,7.5248,119.67,119.63,17.38895447]
[1766103004720,0.05579934,119.66,119.63,17.38895447]
[1766103005818,7.58139934,119.66,119.59,1.96364769]
[1766103006118,0.05579934,119.66,119.59,1.96364769]
[1766103006510,0.05579934,119.66,119.59,9.49344769]
[1766103006720,117.0167,119.71,119.59,1.96364769]
[1766103006921,7.5241,119.69,119.61,7.5284]
[1766103007716,0.06322779,119.66,119.64,0.06231892]
[1766103007918,0.00322779,119.66,119.64,17.39231892]
[1766103012523,68.6027,119.71,119.64,17.39231892]
[1766103013430,0.06225943,119.69,119.64,17.39231892]
[1766103016526,7.58585943,119.69,119.64,17.39231892]
[1766103016824,0.06225943,119.69,119.64,17.39231892]
[1766103017326,0.06225943,119.69,119.64,24.91891892]
[1766103018527,0.06225943,119.69,119.65,18.53]
[1766103030138,0.00225943,119.69,119.66,18.53]
[1766103031540,7.521,119.74,119.67,18.53]
[1766103032542,142.2145166,119.8,119.7,18.53]
[1766103032842,60.9,119.79,119.7,18.53]
[1766103033638,7.5188,119.77,119.73,0.05532716]
[1766103035040,60.9,119.79,119.73,0.05532716]
[1766103036544,7.5181,119.78,119.73,0.05532716]
[1766103038543,7.5181,119.78,119.73,18.58532716]
[1766103040144,60.84,119.82,119.73,18.58532716]
[1766103040338,60.84,119.82,119.76,18.58278832]
[1766103041146,7.516,119.81,119.76,18.58278832]
[1766103041337,7.516,119.81,119.76,0.05278832]
[1766103042343,7.5168,119.8,119.76,0.05278832]
[1766103044339,68.3559,119.82,119.76,19.15278832]
[1766103044843,7.5167,119.8,119.76,19.15278832]
[1766103046947,116.9176,119.81,119.76,0.05278832]
[1766103047148,177.7483,119.82,119.66,117.0549]
[1766103047149,116.9455,119.78,119.66,117.0549]
[1766103047463,60.78,119.77,119.65,295.0562]
[1766103047942,7.52,119.75,119.65,60.92]
[1766103048143,177.7393,119.77,119.69,0.06426408]
[1766103048351,177.7393,119.77,119.65,60.92]
[1766103049249,177.7393,119.77,119.7,0.05448205]
[1766103049635,7.5204,119.74,119.7,0.05448205]
[1766103049837,60.76,119.76,119.7,19.15448205]
[1766103050147,60.76,119.76,119.72,19.15301417]
[1766103050348,60.76,119.76,119.73,0.05420659]
[1766103052654,68.2578,119.79,119.73,0.05420659]
[1766103056258,7.5181,119.78,119.73,0.05420659]
[1766103061360,177.6791,119.79,119.73,0.05420659]
[1766103061655,116.9758,119.75,119.68,19.1]
[1766103061853,60.68,119.74,119.68,19.1]
[1766103062557,0.00420659,119.72,119.7,0.05608837]
[1766103062760,0.00420659,119.72,119.69,17.92]
[1766103063658,0.00420659,119.72,119.69,17.98193917]
[1766103065162,233.81,119.83,119.71,17.92]
[1766103065356,294.47,119.83,119.71,17.92]
[1766103066261,294.47,119.83,119.76,0.06167882]
[1766103066666,7.5165,119.81,119.76,0.06167882]
[1766103073869,1.40948781,119.86,119.76,25.56067882]
[1766103074059,60.6,119.85,119.8,0.06278111]
[1766103074973,7.5146,119.84,119.8,0.06278111]
[1766103077970,7.5147,119.83,119.8,0.06278111]
[1766103081073,7.5154,119.82,119.8,0.06278111]
[1766103083877,60.54,119.81,119.73,17.98]
[1766103084469,68.0566,119.81,119.73,17.98]
[1766103084880,0.06278111,119.78,119.76,0.05805447]
[1766103087379,60.5,119.82,119.76,18.03805447]
[1766103087584,60.5,119.82,119.76,17.98]
[1766103088380,60.5,119.82,119.78,0.06072469]
[1766103089285,68.0155,119.82,119.78,0.06072469]
[1766103089687,1.40948781,119.86,119.78,0.06072469]
[1766103089890,7.5147,119.84,119.81,0.00155549]
[1766103090690,68.0135,119.85,119.81,0.00155549]
[1766103090987,0.06,119.84,119.81,0.00155549]
[1766103095302,0.06,119.84,119.76,17.98]
[1766103095605,60.48,119.85,119.76,17.98]
[1766103096295,0.05325094,119.82,119.79,0.06159441]
[1766103098605,0.05325094,119.82,119.75,17.98]
[1766103099201,7.56905094,119.82,119.75,25.4996]
[1766103099710,7.56905094,119.82,119.77,0.06353564]
[1766103105310,7.5161,119.81,119.77,0.06353564]
[1766103106613,7.56865094,119.82,119.77,19.27353564]
[1766103107110,0.05325094,119.82,119.77,19.27353564]
[1766103107308,61.78948781,119.86,119.77,19.27353564]
[1766103107501,60.38,119.86,119.77,19.21]
[1766103107706,7.5135,119.85,119.78,19.21]
[1766103108418,0.05468752,119.83,119.8,0.05435833]
[1766103115519,0.05468752,119.83,119.8,19.26435833]
[1766103117321,0.00468752,119.83,119.8,19.26435833]
[1766103118709,0.00468752,119.83,119.8,0.05435833]
[1766103119823,0.00468752,119.83,119.8,19.26435833]
[1766103120826,116.8293,119.9,119.8,19.26435833]
[1766103121125,60.28,119.89,119.8,19.21]
[1766103121923,60.28,119.89,119.83,0.06385187]
[1766103122124,116.8484,119.88,119.83,0.06385187]
[1766103122426,116.8484,119.88,119.8,19.21]
[1766103122427,116.8671,119.86,119.76,19.47]
[1766103122827,7.5147,119.83,119.76,19.47]
[1766103123417,0.0019514,119.81,119.78,19.52747059]
[1766103126215,7.5141,119.85,119.78,19.52747059]
[1766103126420,7.5141,119.85,119.78,19.47]
[1766103126728,7.5144,119.84,119.78,19.47]
[1766103127230,7.5144,119.84,119.8,0.06327658]
[1766103127816,7.5144,119.84,119.78,19.47]
[1766103127817,116.8808,119.85,119.78,19.47]
[1766103128022,116.8915,119.84,119.75,19.47]
[1766103128222,116.8975,119.83,119.75,19.47]
[1766103128533,177.1375,119.83,119.75,19.47]
[1766103128732,7.57738264,119.8,119.78,0.05716534]
[1766103129835,0.06068264,119.8,119.78,0.05716534]
[1766103134628,7.57738264,119.8,119.75,19.47]
[1766103134831,0.06068264,119.8,119.72,18.26]
[1766103135128,116.9201,119.81,119.72,18.26]
[1766103135534,7.5179,119.78,119.72,18.26]
[1766103135734,0.05774028,119.76,119.74,0.05739378]
[1766103140426,7.5175,119.79,119.74,18.31739378]
[1766103140827,60.18,119.81,119.74,18.31739378]
[1766103141026,60.18,119.81,119.74,18.26]
[1766103141426,0.06201684,119.79,119.76,0.00265447]
[1766103141632,177.1016,119.81,119.72,18.26]
[1766103141931,116.9263,119.8,119.72,18.26]
[1766103142632,0.06194678,119.77,119.75,0.05725947]
[1766103143136,7.58054678,119.77,119.75,0.05725947]
[1766103143332,7.58054678,119.77,119.72,18.26]
[1766103143538,0.06194678,119.77,119.72,18.26]
[1766103144239,0.06194678,119.77,119.73,0.0574082]
[1766103146239,7.5192,119.76,119.73,0.0574082]
[1766103146842,0.06194678,119.77,119.73,18.3174082]
[1766103147634,7.58044678,119.77,119.73,18.3174082]
[1766103148241,0.06194678,119.77,119.73,18.3174082]
[1766103148541,0.00194678,119.77,119.73,18.3174082]
[1766103152930,7.52064678,119.77,119.73,18.3174082]
[1766103153943,7.5191,119.76,119.73,18.3174082]
[1766103154445,0.00194678,119.77,119.73,18.3174082]
[1766103154748,7.52074678,119.77,119.73,18.3174082]
[1766103155448,0.00194678,119.77,119.7,18.26]
[1766103155750,116.9537,119.78,119.7,18.26]
[1766103156547,7.58389702,119.75,119.73,0.05953894]
[1766103157151,0.06399702,119.75,119.73,0.05953894]
[1766103169246,116.9377,119.79,119.73,18.74953894]
[1766103169451,119.8677,119.79,119.73,18.74953894]
[1766103169859,2.93,119.78,119.73,18.74953894]
[1766103170253,0.05592639,119.77,119.73,18.74953894]
[1766103171562,7.5197,119.76,119.73,18.74953894]
[1766103172962,7.5198,119.75,119.73,18.74953894]
[1766103174263,7.5192,119.76,119.73,18.74953894]
[1766103181568,7.5198,119.75,119.69,7.5235]
[1766103182571,0.06279799,119.73,119.71,0.05720876]
[1766103182771,0.00279799,119.73,119.71,0.05720876]
[1766103183572,0.00279799,119.73,119.72,19.19]
[1766103188174,7.5194,119.76,119.72,19.19]
[1766103188974,0.06076143,119.75,119.72,19.19]
[1766103189865,0.00076143,119.75,119.72,19.19]
[1766103191968,0.00076143,119.75,119.71,0.05720876]
[1766103192173,7.52056143,119.75,119.71,0.05720876]
[1766103193478,0.00076143,119.75,119.71,0.05720876]
[1766103194789,0.00076143,119.75,119.71,19.31720876]
[1766103198386,0.00076143,119.75,119.71,0.05720876]
[1766103198387,16.69,119.74,119.71,0.05720876]
[1766103198593,16.63,119.73,119.66,21.23751731]
[1766103199580,0.06247798,119.71,119.68,0.06012021]
[1766103200691,116.9396,119.79,119.68,19.32012021]
[1766103200893,19.4124451,119.77,119.68,19.26]
[1766103201394,2.6824451,119.75,119.7,19.26]
[1766103201797,0.05457631,119.74,119.71,0.05708832]
[1766103203697,16.83457631,119.74,119.71,0.05708832]
[1766103203890,2.6824451,119.73,119.69,19.26]
[1766103204795,16.83457631,119.74,119.69,19.26]
[1766103205095,0.05457631,119.74,119.7,0.0540526]
[1766103205893,7.57507631,119.74,119.7,0.0540526]
[1766103206301,0.05457631,119.74,119.7,0.0540526]
[1766103211505,16.97457631,119.74,119.7,0.0540526]
[1766103211708,2.6824451,119.73,119.7,0.0540526]
[1766103212203,2.6824451,119.71,119.66,9.50241731]
[1766103212395,2.6824451,119.71,119.66,26.7849]
[1766103212600,2.6824451,119.69,119.6,134.8602451]
[1766103212808,2.6824451,119.69,119.62,19.26]
[1766103213208,2.6824451,119.69,119.64,19.32043439]
[1766103213602,2.6824451,119.71,119.65,19.26]
[1766103213804,19.7024451,119.72,119.65,19.26]
[1766103214307,0.06372365,119.7,119.67,0.06251797]
[1766103214808,76.81,119.74,119.67,19.32251797]
[1766103215005,2.6824451,119.73,119.67,19.32251797]
[1766103215908,0.04260011,119.71,119.67,19.32251797]
[1766103216605,0.04260011,119.71,119.67,26.84711797]
[1766103220715,0.04260011,119.71,119.67,19.32251797]
[1766103221218,0.04260011,119.71,119.67,0.06251797]
[1766103221219,19.85504521,119.71,119.67,0.06251797]
[1766103221920,2.6824451,119.69,119.67,0.06251797]
[1766103222118,2.6824451,119.69,119.65,19.26]
[1766103222619,2.6824451,119.7,119.65,19.26]
[1766103223017,0.05782282,119.69,119.66,0.05457126]
[1766103226119,0.05782282,119.69,119.66,19.84457126]
[1766103226421,10.2046451,119.72,119.66,19.84457126]
[1766103226724,27.5046451,119.72,119.66,19.84457126]
[1766103227222,0.04729526,119.7,119.66,19.84457126]
[1766103238043,0.04729526,119.7,119.66,27.36987126]
[1766103238439,0.04729526,119.7,119.67,19.79]
[1766103238642,17.5,119.76,119.67,19.79]
[1766103238836,17.5,119.72,119.67,19.79]
[1766103239236,7.5229,119.71,119.67,19.79]
[1766103239638,7.5229,119.71,119.68,0.05970734]
[1766103240440,17.45,119.7,119.61,19.79]
[1766103240744,17.46,119.69,119.61,19.79]
[1766103241242,0.05537143,119.66,119.64,0.05404182]
[1766103244938,17.46,119.69,119.64,0.05404182]
[1766103246746,24.9838,119.69,119.64,0.05404182]
[1766103251048,17.65,119.68,119.64,0.05404182]
[1766103251350,25.1742,119.68,119.64,0.05404182]
[1766103251551,17.66,119.67,119.61,19.75]
[1766103251845,25.136,119.65,119.59,19.75]
[1766103252545,0.05672703,119.63,119.61,0.0566478]
[1766103257057,17.73672703,119.63,119.57,18.73]
[1766103257749,17.73672703,119.63,119.58,18.73]
[1766103258145,17.73672703,119.63,119.59,0.0527794]
[1766103259154,0.05672703,119.63,119.59,0.0527794]
[1766103259454,0.05672703,119.63,119.59,18.7827794]
[1766103277574,77.2,119.65,119.6,18.73]
[1766103277575,67.086,119.65,119.6,18.73]
[1766103278574,84.956,119.65,119.6,18.73]
[1766103278777,0.0539403,119.64,119.6,18.73]
[1766103279271,0.0039403,119.64,119.6,18.73]
[1766103282774,17.9639403,119.64,119.59,0.0527794]
[1766103282974,22.15512579,119.64,119.59,0.0527794]
[1766103283178,17.96,119.63,119.56,19.43]
[1766103283786,7.5291,119.61,119.56,19.43]
[1766103283975,22.16118549,119.62,119.56,19.43]
[1766103284172,0.05472665,119.6,119.58,0.05581062]
[1766103286277,0.05472665,119.6,119.54,8.98770157]
[1766103286278,17.93,119.59,119.54,19.43]
[1766103286677,17.93,119.59,119.5,20.88567105]
[1766103286988,22.12118549,119.58,119.52,19.43]
[1766103287288,0.05920301,119.56,119.54,0.05761788]
[1766103287477,0.05920301,119.56,119.5,20.88567105]
[1766103287685,17.99920301,119.56,119.5,19.43]
[1766103287880,22.1903885,119.56,119.48,28.42237557]
[1766103288078,22.13118549,119.56,119.48,28.42237557]
[1766103288384,22.13118549,119.56,119.49,19.43]
[1766103288586,0.06234583,119.54,119.51,0.06207179]
[1766103292383,0.06234583,119.54,119.51,19.49207179]
[1766103292986,7.5316,119.57,119.51,19.49207179]
[1766103293578,2.68898329,119.58,119.51,19.49207179]
[1766103293984,0.05489963,119.56,119.51,19.49207179]
[1766103301591,2.68898329,119.6,119.52,19.43]
[1766103301788,2.68898329,119.62,119.54,19.43]
[1766103301987,2.68898329,119.6,119.54,19.43]
[1766103302485,2.68898329,119.58,119.54,19.43]
[1766103302686,2.74508958,119.58,119.56,0.06347169]
[1766103302988,2.74508958,119.58,119.54,19.43]
[1766103303796,2.74508958,119.58,119.55,0.05963096]
[1766103305999,0.05610629,119.58,119.55,0.05963096]
[1766103307901,2.68898329,119.6,119.55,19.29963096]
[1766103308096,59.36,119.61,119.55,19.29963096]
[1766103308798,10.21678329,119.63,119.57,19.24]
[1766103309002,2.74849964,119.61,119.59,0.00085644]
[1766103309199,2.68898329,119.61,119.59,0.00085644]
[1766103310091,2.74575796,119.61,119.59,0.00085644]
[1766103312306,0.05677467,119.61,119.59,0.00085644]
[1766103317212,2.68898329,119.63,119.59,19.16085644]
[1766103317899,2.68898329,119.63,119.59,0.00085644]
[1766103318305,0.05915019,119.62,119.59,0.00085644]
[1766103322016,26.73725019,119.62,119.59,0.00085644]
[1766103322218,19.20915019,119.62,119.55,19.16]
[1766103323117,19.20915019,119.62,119.57,0.06237902]
[1766103323617,7.5286,119.61,119.57,0.06237902]
[1766103323824,21.83898329,119.61,119.57,0.06237902]
[1766103324622,7.5293,119.6,119.57,0.06237902]
[1766103326222,26.6799,119.59,119.53,26.6935]
[1766103326615,29.36888329,119.59,119.53,26.6935]
[1766103326816,7.5307,119.58,119.53,19.16]
[1766103327216,0.0531342,119.57,119.54,0.06359518]
[1766103328622,7.5843342,119.57,119.54,0.06359518]
[1766103329019,21.83898329,119.62,119.54,21.91257847]
[1766103329214,21.83898329,119.62,119.54,21.84898329]
[1766103330125,0.06091318,119.59,119.57,0.05674276]
[1766103331426,85.8772,119.64,119.57,19.21674276]
[1766103333025,29.36628329,119.63,119.57,19.21674276]
[1766103333724,26.6773,119.63,119.57,19.21674276]
[1766103333923,29.36628329,119.63,119.57,19.21674276]
[1766103334323,21.83898329,119.63,119.57,19.21674276]
[1766103335821,21.83898329,119.63,119.57,26.74764276]
[1766103336023,21.83898329,119.63,119.58,19.16]
[1766103337427,19.15,119.63,119.58,19.16]
[1766103339729,19.15,119.63,119.58,26.6904]
[1766103340931,19.15,119.63,119.58,19.16]
[1766103346537,19.15,119.63,119.58,26.6904]
[1766103349638,59.2,119.64,119.58,26.6904]
[1766103349841,59.2,119.64,119.6,0.05824935]
[1766103350033,79.29,119.64,119.6,0.05824935]
[1766103353246,22.77898329,119.63,119.56,29.48018329]
[1766103353441,22.77898329,119.63,119.56,26.7912]
[1766103354237,0.05826721,119.61,119.58,0.05511706]
[1766103358335,27.6174,119.63,119.58,0.05511706]
[1766103358336,7.5274,119.63,119.58,19.31511706]
[1766103359048,27.6174,119.63,119.58,19.31511706]
[1766103362567,59.2,119.64,119.59,19.11]
[1766103367359,78.85,119.64,119.59,19.11]
[1766103368762,59.2,119.64,119.6,19.11]
[1766103368967,23.8478121,119.68,119.61,0.53675678]
[1766103369354,23.8478121,119.68,119.61,0.05675678]
[1766103369848,19.65,119.65,119.61,0.05675678]
[1766103370062,19.65,119.65,119.58,0.6]
[1766103370260,27.176,119.65,119.58,8.1303]
[1766103370458,19.65,119.64,119.58,8.1303]
[1766103370962,0.06115009,119.62,119.6,0.0595475]
[1766103371360,7.526,119.65,119.6,0.0595475]
[1766103371361,27.1754,119.66,119.6,0.6595475]
[1766103371561,19.65,119.65,119.6,0.0595475]
[1766103375662,27.1762,119.65,119.6,0.0595475]
[1766103375961,27.1762,119.65,119.55,117.1682]
[1766103375962,4.1978121,119.62,119.55,0.96]
[1766103376158,18.94,119.61,119.55,0.96]
[1766103376765,0.06078115,119.59,119.57,0.06238655]
[1766103377367,4.1978121,119.64,119.57,0.06238655]
[1766103377368,18.94,119.63,119.57,0.06238655]
[1766103377667,18.94,119.63,119.57,1.14238655]
[1766103378563,18.94,119.63,119.58,7.5304]
[1766103381660,18.94,119.63,119.58,8.8304]
[1766103381865,26.4661,119.65,119.59,7.5298]
[1766103382066,18.94,119.64,119.61,0.06127299]
[1766103383551,19.00364401,119.64,119.61,0.00127299]
[1766103383870,18.94,119.63,119.57,7.5306]
[1766103384861,0.06391831,119.61,119.59,0.05799227]
[1766103404476,19.76391831,119.61,119.54,61.44]
[1766103404675,19.76391831,119.61,119.55,2.54]
[1766103405477,19.76391831,119.61,119.57,0.05718807]
[1766103406481,0.06391831,119.61,119.57,2.63718807]
[1766103407578,0.06391831,119.61,119.57,10.16818807]
[1766103411190,0.06391831,119.61,119.57,0.05718807]
[1766103411191,19.76391831,119.61,119.57,0.05718807]
[1766103413393,0.06391831,119.61,119.57,2.90718807]
[1766103414592,0.06391831,119.61,119.57,10.43818807]
[1766103416189,0.06391831,119.61,119.57,2.90718807]
[1766103416381,22.38609359,119.6,119.53,3.0]
[1766103417293,19.7,119.59,119.53,10.533]
[1766103417589,0.0541431,119.57,119.55,0.06411247]
[1766103421097,0.0541431,119.57,119.55,7.59641247]
[1766103421499,19.7,119.61,119.56,7.5317]
[1766103421694,19.7,119.61,119.56,10.7617]
[1766103421998,19.7,119.63,119.56,3.23]
[1766103422194,21.95,119.65,119.6,3.25]
[1766103422401,0.06036255,119.64,119.61,0.05457359]
[1766103428511,22.01036255,119.64,119.61,0.05457359]
[1766103435610,175.7122,119.7,119.62,3.71]
[1766103435611,29.5829,119.7,119.62,3.71]
[1766103435811,22.06,119.69,119.62,3.71]
[1766103436117,22.06,119.69,119.63,13.92329359]
[1766103436411,22.06,119.71,119.64,3.71]
[1766103436610,0.0571011,119.69,119.66,0.05890065]
[1766103442216,22.06,119.66,119.6,3.93]
[1766103442420,22.06,119.66,119.58,58.7]
[1766103442421,24.74609359,119.65,119.58,3.93]
[1766103442722,24.74609359,119.65,119.59,7.5296]
[1766103443223,0.06260831,119.63,119.61,0.06115103]
[1766103444124,24.74609359,119.67,119.61,0.06115103]
[1766103444914,22.06,119.67,119.61,11.53935103]
[1766103445119,22.06,119.69,119.62,3.95]
[1766103445321,22.06,119.71,119.65,6.57609359]
[1766103445827,22.06,119.73,119.66,3.92]
[1766103446330,22.06,119.73,119.68,0.05470822]
[1766103447314,24.74609359,119.73,119.68,0.00470822]
[1766103448321,22.12118497,119.72,119.68,0.00470822]
[1766103451330,0.06118497,119.72,119.68,14.30470181]
[1766103452527,0.06118497,119.72,119.69,7.5234]
[1766103453334,22.06,119.76,119.7,6.76609359]
[1766103454233,22.06,119.76,119.72,0.05287681]
[1766103454731,22.06,119.76,119.72,7.57447681]
[1766103455935,24.74609359,119.78,119.72,7.57447681]
[1766103456131,22.06,119.78,119.72,7.57447681]
[1766103456833,22.06,119.78,119.73,11.6908]
[1766103461838,22.06,119.78,119.74,7.5203]
[1766103462038,22.06,119.78,119.75,0.05481962]
[1766103464441,80.82,119.8,119.75,0.05481962]
[1766103464735,22.3,119.8,119.75,0.05481962]
[1766103465641,22.3,119.82,119.76,11.8891]
[1766103465946,22.3,119.82,119.78,0.05648284]
[1766103466240,22.3,119.82,119.76,7.519]
[1766103466743,22.3,119.84,119.76,4.45]
[1766103466941,22.3,119.84,119.76,7.5185]
[1766103467240,141.95,119.88,119.75,116.9705]
[1766103467241,22.354955,119.81,119.75,63.02]
[1766103467543,0.054955,119.81,119.76,4.5]
[1766103468140,0.054955,119.81,119.77,0.0602031]
[1766103469136,22.3,119.86,119.79,12.0071]
[1766103469832,22.3,119.84,119.77,7.5181]
[1766103470036,24.98609359,119.83,119.78,58.5]
[1766103470236,0.05673787,119.82,119.78,58.5]
[1766103470446,0.05673787,119.82,119.79,0.05520639]
[1766103470941,0.05673787,119.82,119.78,58.5]
[1766103470942,22.35673787,119.82,119.77,7.5181]
[1766103471146,22.35673787,119.82,119.76,58.48]
[1766103472046,22.35673787,119.82,119.78,0.05707294]
[1766103472347,22.3,119.78,119.7,301.85489593]
[1766103472537,24.98609359,119.77,119.71,4.68]
[1766103472737,24.98609359,119.77,119.7,60.47270234]
[1766103473145,0.06040648,119.75,119.72,0.06290358]
[1766103477450,22.36040648,119.75,119.72,0.06290358]
[1766103480952,22.36040648,119.75,119.68,7.5237]
[1766103481145,22.3,119.75,119.68,7.5237]
[1766103481953,22.61294862,119.73,119.7,0.00308924]
[1766103483451,0.05294862,119.73,119.7,0.00308924]
[1766103483857,22.61294862,119.73,119.7,0.00308924]
[1766103484057,22.61294862,119.73,119.65,58.44]
[1766103484251,22.56,119.73,119.65,58.44]
[1766103484859,22.56,119.72,119.65,58.44]